bitfinex-derivatives/quotes_SOLF0:USTF0_20220110
["timestamp","ask_amount","ask_price","bid_price","bid_amount"]
[1641813298047,0.80698802,140.37,140.28,18.12452187]
[1641813298246,0.80698802,140.37,140.33,4.0]
[1641813298448,0.80698802,140.43,140.33,15.54398554]
[1641813298747,4.80698802,140.43,140.33,15.54398554]
[1641813298947,9.69669896,140.44,140.33,8.423]
[1641813299246,5.69785782,140.41,140.33,8.423]
[1641813299646,0.80698802,140.4,140.33,8.423]
[1641813301053,13.33098802,140.4,140.31,7.12199986]
[1641813301353,0.80698802,140.39,140.31,7.12199986]
[1641813303953,0.80698802,140.39,140.32,4.03432807]
[1641813306057,4.80698802,140.39,140.32,4.03432807]
[1641813306858,0.80698802,140.38,140.32,4.03432807]
[1641813307259,0.80698802,140.38,140.31,4.03432807]
[1641813307659,6.50563005,140.39,140.31,4.03432807]
[1641813307859,10.50563005,140.39,140.31,4.03432807]
[1641813308060,4.80698802,140.38,140.31,4.03432807]
[1641813308259,5.69963642,140.36,140.31,4.03432807]
[1641813308461,9.70004162,140.35,140.31,4.03432807]
[1641813308962,5.70127151,140.32,140.31,4.03432807]
[1641813309261,14.17425953,140.32,140.24,4.03432807]
[1641813309662,0.80698802,140.31,140.24,4.03432807]
[1641813309863,6.50889572,140.31,140.24,4.03432807]
[1641813310066,5.70273282,140.29,140.24,4.03432807]
[1641813310265,11.93073282,140.29,140.24,4.03432807]
[1641813310665,6.228,140.29,140.24,4.03432807]
[1641813311365,10.84174677,140.32,140.24,4.03432807]
[1641813311564,4.0,140.31,140.24,4.03432807]
[1641813311766,5.70247557,140.29,140.24,4.03432807]
[1641813311964,11.37547557,140.29,140.24,4.03432807]
[1641813312564,5.673,140.29,140.24,4.03432807]
[1641813313665,9.70202734,140.31,140.24,4.03432807]
[1641813313666,5.70202734,140.31,140.24,4.03432807]
[1641813313866,12.83976288,140.36,140.24,4.03432807]
[1641813314467,5.70078198,140.34,140.24,4.03432807]
[1641813314767,4.0,140.33,140.24,4.03432807]
[1641813314967,4.0,140.32,140.24,4.03432807]
[1641813315170,5.70202679,140.31,140.24,4.03432807]
[1641813315369,15.74602679,140.31,140.24,4.03432807]
[1641813315568,5.70286095,140.29,140.24,4.03432807]
[1641813315771,9.70328244,140.28,140.24,4.03432807]
[1641813315969,15.91828244,140.28,140.24,4.03432807]
[1641813317369,4.0,140.25,140.24,4.03432807]
[1641813317570,15.84023534,140.25,140.24,4.03432807]
[1641813317970,15.84023534,140.25,140.24,3.22701226]
[1641813318170,16.64769057,140.25,140.18,3.22701226]
[1641813318572,15.84023534,140.25,140.18,3.22701226]
[1641813319573,4.0,140.21,140.18,3.22701226]
[1641813319871,12.506,140.21,140.18,3.22701226]
[1641813320471,12.506,140.21,140.16,3.22701226]
[1641813321073,8.506,140.21,140.16,3.22701226]
[1641813321675,5.70660628,140.19,140.13,3.22701226]
[1641813322473,14.04860628,140.19,140.13,3.22701226]
[1641813324177,18.04860628,140.19,140.13,3.22701226]
[1641813325179,14.04860628,140.19,140.13,3.22701226]
[1641813326982,4.0,140.16,140.13,3.22701226]
[1641813327179,5.7085357,140.15,140.13,3.22701226]
[1641813327580,5.7085357,140.15,140.11,3.22701226]
[1641813328179,5.7085357,140.15,140.08,3.22701226]
[1641813328380,5.70894855,140.14,140.08,3.22701226]
[1641813328581,5.70975654,140.12,140.08,3.22701226]
[1641813328783,13.23375654,140.12,140.08,3.22701226]
[1641813331881,5.71040998,140.1,140.08,3.22701226]
[1641813332484,7.524,140.12,140.05,3.22701226]
[1641813333084,5.71023878,140.1,140.05,3.22701226]
[1641813333484,5.71076766,140.09,140.03,3.22701226]
[1641813333685,13.74476766,140.09,140.03,3.22701226]
[1641813334584,8.034,140.09,140.03,3.22701226]
[1641813334784,6.85091929,140.13,140.03,3.22701226]
[1641813335384,6.85091929,140.13,140.04,2.36019043]
[1641813335584,5.71036062,140.1,140.04,2.36019043]
[1641813335784,11.74736062,140.1,140.04,2.36019043]
[1641813336185,11.74736062,140.1,140.05,3.22701226]
[1641813337585,5.71129709,140.08,140.03,3.22701226]
[1641813338386,5.71214053,140.06,140.03,3.22701226]
[1641813338585,13.92414053,140.06,140.03,3.22701226]
[1641813339384,13.92414053,140.06,140.0,3.22701226]
[1641813339586,8.212,140.06,140.0,3.22701226]
[1641813339786,5.71134117,140.08,140.0,3.22701226]
[1641813340186,5.71134117,140.08,139.99,3.22701226]
[1641813340385,5.71134117,140.08,140.01,2.36197859]
[1641813340585,7.71134117,140.08,140.01,2.36197859]
[1641813341186,7.71134117,140.08,140.02,3.22701226]
[1641813341586,7.71134117,140.08,140.03,4.0]
[1641813341789,2.0,140.08,140.04,4.0]
[1641813341987,6.85132428,140.12,140.04,7.22701226]
[1641813342187,6.85132428,140.12,140.04,3.22701226]
[1641813342389,4.85132428,140.12,140.04,3.22701226]
[1641813342589,5.71003278,140.11,140.05,3.22701226]
[1641813342787,13.91603278,140.11,140.05,3.22701226]
[1641813342986,13.91603278,140.11,140.04,3.22701226]
[1641813343788,13.91603278,140.11,140.03,3.22701226]
[1641813344188,5.71085816,140.09,140.05,2.3650457]
[1641813344889,5.71085816,140.09,140.06,3.22701226]
[1641813345691,5.71085816,140.09,140.05,3.22701226]
[1641813346691,5.71085816,140.09,140.03,3.22701226]
[1641813346893,5.71085816,140.09,140.06,2.36852063]
[1641813347595,5.71085816,140.09,140.07,3.22701226]
[1641813348594,5.71085816,140.09,140.05,3.22701226]
[1641813348795,2.0,140.12,140.05,3.22701226]
[1641813348994,2.0,140.12,140.08,3.22701226]
[1641813349293,2.0,140.12,140.06,3.22701226]
[1641813349493,2.0,140.12,140.06,5.59938202]
[1641813349894,5.71026633,140.1,140.06,5.59938202]
[1641813350094,14.74926633,140.1,140.06,5.59938202]
[1641813350299,14.74926633,140.1,140.07,3.22701226]
[1641813350495,5.71075159,140.09,140.07,5.59938202]
[1641813350896,5.71067336,140.09,140.07,5.59938202]
[1641813351095,5.71067336,140.09,140.08,3.22701226]
[1641813352096,5.71067336,140.09,140.04,3.22701226]
[1641813352897,5.71067336,140.09,140.05,2.37680888]
[1641813353396,5.71067336,140.09,140.06,3.22701226]
[1641813353999,8.85140429,140.12,140.06,3.22701226]
[1641813354901,8.85140429,140.12,140.07,2.37680888]
[1641813355499,5.71028688,140.1,140.07,2.37680888]
[1641813355698,11.66928688,140.1,140.08,3.22701226]
[1641813356699,5.959,140.1,140.09,2.37680888]
[1641813357300,5.959,140.1,140.09,5.60382114]
[1641813358100,7.70946147,140.12,140.09,5.60382114]
[1641813358701,7.70946147,140.12,140.1,3.22701226]
[1641813359101,7.70946147,140.12,140.1,5.60382114]
[1641813359700,7.70946147,140.12,140.11,3.22701226]
[1641813359900,7.70946147,140.12,140.11,5.60382114]
[1641813360702,11.70946147,140.12,140.11,5.60382114]
[1641813360903,5.71061429,140.1,140.08,15.02985638]
[1641813361704,5.71061429,140.1,140.06,15.02985638]
[1641813361906,8.85129375,140.12,140.06,19.02985638]
[1641813362104,8.85129375,140.12,140.06,27.18085638]
[1641813362303,8.85129375,140.12,140.07,4.04142983]
[1641813362705,8.85129375,140.12,140.08,15.02985638]
[1641813363103,8.85129375,140.12,140.09,4.04142983]
[1641813365104,2.0,140.12,140.09,4.04142983]
[1641813366105,2.0,140.12,140.1,4.0]
[1641813366307,8.21951247,140.16,140.1,10.276]
[1641813366510,15.02985638,140.18,140.11,4.04142983]
[1641813366805,13.02995638,140.18,140.11,4.04142983]
[1641813367006,13.02995638,140.18,140.13,4.0]
[1641813367206,13.02995638,140.18,140.14,4.0]
[1641813367408,13.02995638,140.18,140.13,8.142]
[1641813367609,13.02995638,140.18,140.15,4.04142983]
[1641813368008,16.14495423,140.2,140.15,4.04142983]
[1641813368208,5.70625574,140.2,140.14,4.04142983]
[1641813368407,5.70745429,140.17,140.14,4.04142983]
[1641813368608,11.55745429,140.17,140.11,4.04142983]
[1641813370811,5.85,140.17,140.11,4.04142983]
[1641813371009,2.0,140.2,140.11,4.04142983]
[1641813371309,2.0,140.2,140.11,8.04142983]
[1641813371709,2.0,140.2,140.12,4.04142983]
[1641813373510,5.70785163,140.16,140.12,4.04142983]
[1641813373710,12.76285163,140.16,140.11,4.04142983]
[1641813373912,5.70910757,140.13,140.11,4.04142983]
[1641813374210,14.16710757,140.13,140.06,45.0895]
[1641813375213,14.16710757,140.13,140.07,7.13444869]
[1641813375214,8.458,140.13,140.07,7.13444869]
[1641813375412,8.458,140.13,140.07,11.13444869]
[1641813375613,6.84933483,140.16,140.1,4.0]
[1641813375813,2.0,140.2,140.11,4.0]
[1641813376013,2.0,140.2,140.11,50.2849]
[1641813376213,2.0,140.2,140.12,4.0]
[1641813376413,1.7268716,140.19,140.12,4.0]
[1641813377113,1.7268716,140.19,140.12,13.69104598]
[1641813377312,1.7268716,140.19,140.13,4.0]
[1641813377513,1.7268716,140.19,140.14,4.0]
[1641813377713,2.0,140.2,140.15,4.0]
[1641813377913,2.0,140.2,140.16,4.0]
[1641813378115,0.0001,140.2,140.16,10.493]
[1641813378312,6.84397103,140.27,140.17,4.0]
[1641813378514,6.84397103,140.27,140.19,4.0]
[1641813378717,1.72601064,140.26,140.19,5.65]
[1641813378917,1.72601064,140.26,140.19,9.65]
[1641813379318,1.72601064,140.27,140.19,5.65]
[1641813379518,4.0,140.26,140.19,5.65]
[1641813379722,11.065,140.26,140.14,11.1306332]
[1641813379919,5.70442371,140.25,140.14,16.82167918]
[1641813380119,5.70442371,140.25,140.14,20.82167918]
[1641813380320,7.43043435,140.25,140.14,20.82167918]
[1641813380519,1.72601064,140.24,140.14,20.82167918]
[1641813380720,1.72601064,140.24,140.15,4.0]
[1641813381319,1.72601064,140.24,140.14,11.1306332]
[1641813381521,1.72601064,140.24,140.14,7.1306332]
[1641813381720,1.72601064,140.24,140.15,47.6098]
[1641813381925,5.70525633,140.23,140.15,47.6098]
[1641813382120,13.80925633,140.23,140.15,47.6098]
[1641813382320,1.72601064,140.22,140.15,47.6098]
[1641813383321,1.72601064,140.22,140.15,51.6098]
[1641813384120,1.72601064,140.22,140.15,47.6098]
[1641813384521,1.72601064,140.22,140.15,51.6098]
[1641813384922,1.064e-05,140.22,140.2,4.0]
[1641813385123,2.0,140.27,140.2,4.0]
[1641813385323,2.0,140.27,140.21,4.0]
[1641813385523,2.0,140.27,140.22,4.0]
[1641813385723,2.0,140.27,140.19,1.782]
[1641813386126,2.0,140.27,140.18,12.91059994]
[1641813386526,2.0,140.27,140.18,8.91059994]
[1641813386726,15.57549663,140.27,140.18,8.91059994]
[1641813386927,1.20913901,140.26,140.18,7.12859994]
[1641813388328,1.20913901,140.26,140.18,11.12859994]
[1641813388530,1.20913901,140.26,140.18,7.12859994]
[1641813388730,1.20913901,140.26,140.18,11.12859994]
[1641813389131,1.20913901,140.26,140.19,4.0380456]
[1641813390332,1.20913901,140.26,140.19,8.0380456]
[1641813390631,1.20913901,140.26,140.2,4.0]
[1641813390831,1.20913901,140.26,140.19,4.0380456]
[1641813391033,9.09413901,140.26,140.21,4.0380456]
[1641813391232,14.79799809,140.26,140.21,4.0380456]
[1641813391431,1.20913901,140.25,140.19,4.0380456]
[1641813392836,4.0,140.24,140.19,4.0380456]
[1641813393135,6.91347099,140.25,140.18,4.0380456]
[1641813393638,1.20913901,140.24,140.18,4.0380456]
[1641813395541,1.20913901,140.24,140.19,4.0]
[1641813395742,1.20913901,140.24,140.18,4.0380456]
[1641813396145,1.20913901,140.26,140.18,11.16664554]
[1641813396343,1.20913901,140.26,140.19,4.0]
[1641813396545,2.0,140.27,140.2,4.0]
[1641813396745,2.0,140.27,140.22,4.0]
[1641813396945,2.0,140.27,140.21,7.12732975]
[1641813397146,2.0,140.27,140.23,4.0380456]
[1641813397547,2.0,140.27,140.22,4.0380456]
[1641813398849,2.0,140.27,140.24,4.0]
[1641813399053,2.0,140.27,140.22,49.5236456]
[1641813399452,2.0,140.27,140.25,4.0380456]
[1641813399650,2.0,140.27,140.25,12.1850456]
[1641813399853,2.0,140.27,140.25,8.147]
[1641813400052,2.0,140.27,140.25,12.147]
[1641813400253,15.06266367,140.33,140.26,4.0380456]
[1641813400853,14.27134971,140.33,140.26,4.0380456]
[1641813401052,18.27134971,140.33,140.26,4.0380456]
[1641813401255,14.27134971,140.33,140.24,8.90580611]
[1641813401456,16.09598362,140.34,140.24,7.12580611]
[1641813401753,5.70056009,140.34,140.24,7.12580611]
[1641813401953,5.70056009,140.34,140.24,11.12580611]
[1641813402154,0.84613569,140.33,140.25,4.03699983]
[1641813402355,0.84613569,140.33,140.25,8.03699983]
[1641813402554,0.84613569,140.33,140.25,4.03699983]
[1641813403154,4.84613569,140.33,140.25,4.03699983]
[1641813403556,0.84613569,140.33,140.25,4.03699983]
[1641813403758,0.84613569,140.32,140.25,4.03699983]
[1641813404256,0.84613569,140.33,140.25,4.03699983]
[1641813405455,0.84613569,140.33,140.25,9.81899983]
[1641813405856,0.84613569,140.33,140.26,4.0]
[1641813406056,0.84613569,140.33,140.26,8.03699983]
[1641813406458,0.84613569,140.33,140.27,4.03699983]
[1641813406856,0.84613569,140.33,140.3,4.0]
[1641813407156,0.84613569,140.33,140.3,7.702]
[1641813407356,0.84613569,140.33,140.31,4.03699983]
[1641813408457,0.84613569,140.33,140.29,4.03699983]
[1641813410356,0.84613569,140.33,140.25,51.0868]
[1641813410357,0.84613569,140.33,140.25,55.12379983]
[1641813410557,0.84613569,140.33,140.25,51.12379983]
[1641813410757,0.84613569,140.33,140.3,4.03699983]
[1641813411163,0.84613569,140.33,140.26,4.03699983]
[1641813411360,6.54727381,140.33,140.26,4.03699983]
[1641813411560,4.0,140.32,140.26,4.03699983]
[1641813412058,0.84613569,140.31,140.26,4.03699983]
[1641813412261,6.65613569,140.31,140.26,4.03699983]
[1641813412559,6.65613569,140.31,140.25,4.03699983]
[1641813412960,0.84613569,140.3,140.25,4.03699983]
[1641813414360,0.84613569,140.33,140.25,4.03699983]
[1641813416362,4.0,140.31,140.24,4.03699983]
[1641813416561,8.927,140.31,140.24,4.03699983]
[1641813416763,4.0,140.3,140.24,4.03699983]
[1641813416961,0.84613569,140.3,140.24,4.03699983]
[1641813417360,0.84613569,140.3,140.23,4.03699983]
[1641813418161,0.84613569,140.3,140.24,4.0]
[1641813418361,0.84613569,140.3,140.23,9.81899983]
[1641813418561,0.84613569,140.33,140.25,4.03699983]
[1641813419363,0.84613569,140.33,140.24,4.03699983]
[1641813420163,0.84613569,140.33,140.24,8.03699983]
[1641813420363,0.84613569,140.33,140.24,4.03699983]
[1641813420562,0.84613569,140.33,140.24,1.782]
[1641813420963,0.84613569,140.33,140.25,4.03699983]
[1641813421164,0.84613569,140.33,140.25,8.03699983]
[1641813421365,0.84613569,140.33,140.25,4.03699983]
[1641813421766,0.84613569,140.33,140.26,2.37469319]
[1641813422367,0.84613569,140.33,140.27,4.03699983]
[1641813423969,2.64643941,140.32,140.27,4.03699983]
[1641813424668,0.84613569,140.31,140.27,4.03699983]
[1641813426070,0.84613569,140.33,140.27,4.03699983]
[1641813426270,0.84613569,140.33,140.27,16.55099983]
[1641813426470,0.84613569,140.33,140.3,4.0]
[1641813426674,0.84613569,140.33,140.3,16.10076078]
[1641813426869,2.0,140.34,140.31,4.03699983]
[1641813427475,6.83870154,140.38,140.33,4.0]
[1641813427672,37.75106222,140.41,140.33,16.09298554]
[1641813428274,0.84500748,140.4,140.34,4.03699983]
[1641813428674,10.10800748,140.4,140.34,4.03699983]
[1641813428875,15.80622957,140.4,140.34,4.03699983]
[1641813429374,0.84500748,140.39,140.32,4.03699983]
[1641813429576,3.48962095,140.39,140.29,7.12301446]
[1641813429973,3.48962095,140.39,140.31,7.12225348]
[1641813429974,0.84500748,140.38,140.31,7.12225348]
[1641813430576,0.84500748,140.38,140.32,4.03578372]
[1641813430975,3.48962095,140.38,140.32,4.03578372]
[1641813431378,0.84500748,140.37,140.32,4.03578372]
[1641813432379,0.84500748,140.39,140.32,4.03578372]
[1641813433580,2.64377902,140.38,140.32,12.00778372]
[1641813433781,2.64377902,140.38,140.33,4.0]
[1641813433981,0.84500748,140.37,140.33,8.03578372]
[1641813434181,17.05892255,140.4,140.35,4.0]
[1641813434381,2.0,140.4,140.35,8.734]
[1641813434587,2.0,140.4,140.35,12.734]
[1641813435281,2.0,140.4,140.35,8.734]
[1641813435481,0.80685751,140.39,140.36,4.03428757]
[1641813436281,0.80685751,140.39,140.35,4.03428757]
[1641813436682,0.80685751,140.39,140.35,8.03428757]
[1641813437081,0.80685751,140.39,140.36,4.03428757]
[1641813437282,0.80685751,140.39,140.36,5.81428757]
[1641813437883,0.80685751,140.39,140.37,4.03428757]
[1641813438884,0.80685751,140.39,140.36,4.03428757]
[1641813439785,15.05892255,140.45,140.38,4.0]
[1641813439989,15.05892255,140.46,140.41,7.11693118]
[1641813440187,15.05892255,140.46,140.41,16.06793118]
[1641813440387,13.05902255,140.46,140.41,16.06793118]
[1641813440585,13.05902255,140.46,140.41,17.84793118]
[1641813440785,4.0,140.52,140.41,16.06793118]
[1641813440986,0.80670491,140.45,140.42,4.03352456]
[1641813441391,0.80670491,140.51,140.42,4.03352456]
[1641813442589,0.80670491,140.51,140.42,12.38452456]
[1641813443193,0.80670491,140.51,140.43,4.03352456]
[1641813443392,4.0,140.49,140.43,4.03352456]
[1641813443792,4.0,140.49,140.43,2.03352456]
[1641813444193,0.80670491,140.48,140.39,57.00002223]
[1641813444393,5.69428061,140.5,140.39,57.00002223]
[1641813444594,2.80670491,140.48,140.41,1.19329509]
[1641813445796,2.80670491,140.48,140.39,54.96649767]
[1641813445996,0.8067924,140.47,140.42,4.03396201]
[1641813446396,0.8067924,140.47,140.42,1.19329509]
[1641813446796,0.8067924,140.48,140.42,1.19329509]
[1641813447598,0.8067924,140.48,140.39,54.96649767]
[1641813448300,2.8067924,140.48,140.4,4.03375755]
[1641813448498,2.8067924,140.48,140.43,1.19329509]
[1641813448699,0.8067924,140.47,140.43,1.19329509]
[1641813450299,0.8067924,140.47,140.39,58.96649767]
[1641813450498,0.8067924,140.47,140.45,1.19329509]
[1641813450708,0.8067924,140.47,140.44,1.19329509]
[1641813450902,0.8067924,140.47,140.46,1.19329509]
[1641813451102,0.8067924,140.47,140.46,7.06929509]
[1641813451801,0.8067924,140.47,140.46,11.10276404]
[1641813452002,0.8067924,140.47,140.46,9.90946895]
[1641813452905,0.8067924,140.47,140.46,4.03346895]
[1641813453103,0.8067924,140.47,140.44,1.19329509]
[1641813453305,7.5227924,140.47,140.44,1.19329509]
[1641813453703,7.5227924,140.47,140.43,47.0861]
[1641813454104,0.8067924,140.46,140.45,4.03300085]
[1641813454302,0.8067924,140.46,140.45,5.22629594]
[1641813454506,2.0,140.48,140.45,1.19329509]
[1641813454704,2.0,140.48,140.44,4.03300085]
[1641813454904,0.80652877,140.47,140.46,4.03300085]
[1641813455103,0.80652877,140.47,140.46,5.22629594]
[1641813455504,0.80652877,140.47,140.46,1.19329509]
[1641813455905,2.0,140.48,140.46,5.22629594]
[1641813456304,2.0,140.48,140.46,1.19329509]
[1641813456505,2.0,140.48,140.43,47.0861]
[1641813456704,9.319,140.48,140.45,1.19329509]
[1641813457205,9.319,140.48,140.46,4.03279675]
[1641813457406,9.319,140.48,140.47,1.19329509]
[1641813458305,10.12555494,140.48,140.47,1.19329509]
[1641813462211,10.12555494,140.48,140.47,5.22600978]
[1641813464416,10.12555494,140.48,140.47,4.03271469]
[1641813465016,10.12555494,140.48,140.46,5.22600978]
[1641813465614,0.80655494,140.47,140.46,1.19329509]
[1641813466015,0.80655494,140.47,140.46,5.2261017]
[1641813468520,2.0,140.48,140.46,5.2261017]
[1641813468723,57.17911875,140.54,140.46,11.53880661]
[1641813468922,57.17911875,140.54,140.51,1.19329509]
[1641813469222,57.17911875,140.54,140.46,7.506]
[1641813469424,55.17911875,140.54,140.49,6.422]
[1641813469621,55.17911875,140.54,140.51,1.19329509]
[1641813469622,50.34785457,140.54,140.51,1.19329509]
[1641813469822,0.80632918,140.53,140.51,1.19329509]
[1641813470022,0.80632918,140.53,140.5,4.03164591]
[1641813470224,0.80632918,140.53,140.52,1.19329509]
[1641813470623,0.80632918,140.53,140.52,7.70529509]
[1641813470822,15.87157215,140.53,140.52,7.70529509]
[1641813471622,15.87157215,140.53,140.52,11.73652016]
[1641813471823,0.80632918,140.53,140.52,11.73652016]
[1641813472622,0.80632918,140.54,140.52,7.70529509]
[1641813472821,17.87157215,140.54,140.52,7.70529509]
[1641813473222,17.87157215,140.54,140.52,6.512]
[1641813473422,0.80632918,140.53,140.52,6.512]
[1641813473821,0.80632918,140.53,140.52,7.70529509]
[1641813474024,0.80632918,140.53,140.5,1.19329509]
[1641813474221,7.18232918,140.53,140.48,1.19329509]
[1641813474425,9.82409639,140.53,140.48,1.19329509]
[1641813474823,0.80632918,140.52,140.49,4.03165769]
[1641813475324,0.80632918,140.52,140.48,4.03165769]
[1641813475623,3.44809639,140.52,140.48,4.03165769]
[1641813476024,3.44809639,140.52,140.49,1.19329509]
[1641813476223,3.44809639,140.52,140.5,1.19329509]
[1641813476424,17.06524297,140.54,140.5,1.19329509]
[1641813476425,3.44809639,140.51,140.5,1.19329509]
[1641813476626,3.44809639,140.51,140.48,1.19329509]
[1641813476825,3.44809639,140.51,140.47,45.1105]
[1641813476826,9.74109639,140.51,140.47,46.30379509]
[1641813477026,9.74109639,140.51,140.48,1.19329509]
[1641813477227,3.44809639,140.5,140.48,1.19329509]
[1641813477428,3.44809639,140.5,140.46,1.778]
[1641813477627,0.80632918,140.49,140.48,1.19329509]
[1641813478727,0.80632918,140.51,140.48,1.19329509]
[1641813478928,0.80632918,140.51,140.46,1.778]
[1641813479230,0.80632918,140.52,140.5,1.19329509]
[1641813479430,0.80632918,140.52,140.47,46.3991]
[1641813479629,0.80632918,140.52,140.5,1.19329509]
[1641813479829,0.80632918,140.52,140.47,46.3991]
[1641813480030,0.80632918,140.52,140.48,1.19329509]
[1641813480233,0.80632918,140.52,140.47,46.3991]
[1641813480531,0.80632918,140.53,140.47,46.3991]
[1641813480931,2.64474228,140.51,140.47,52.8461]
[1641813481129,2.64474228,140.51,140.5,1.19329509]
[1641813481531,2.64474228,140.51,140.5,8.54429509]
[1641813481732,15.06524297,140.52,140.5,8.54429509]
[1641813481733,2.64474228,140.52,140.5,8.54429509]
[1641813482531,2.64474228,140.53,140.51,1.19329509]
[1641813482732,2.64474228,140.53,140.5,7.351]
[1641813482932,2.64474228,140.53,140.52,1.19329509]
[1641813483233,17.06524297,140.54,140.52,1.19329509]
[1641813483434,17.06524297,140.54,140.53,1.19329509]
[1641813483732,15.06524297,140.55,140.53,13.69929509]
[1641813484132,13.06524297,140.55,140.54,1.19329509]
[1641813484333,10.38617545,140.57,140.54,1.19329509]
[1641813484532,50.34785457,140.59,140.51,48.727]
[1641813484733,50.34785457,140.59,140.52,1.778]
[1641813484933,50.34785457,140.59,140.53,1.19329509]
[1641813485131,50.34785457,140.59,140.51,50.505]
[1641813485531,39.96167912,140.6,140.51,48.727]
[1641813486433,39.96167912,140.59,140.55,1.19329509]
[1641813487233,50.34785457,140.6,140.55,1.19329509]
[1641813487634,2.0,140.57,140.56,1.19329509]
[1641813488734,2.0,140.57,140.54,2.97129509]
[1641813488934,2.0,140.57,140.53,7.11111111]
[1641813489137,10.764,140.57,140.53,7.11111111]
[1641813489335,10.764,140.57,140.53,8.3044062]
[1641813489533,10.764,140.57,140.52,1.19329509]
[1641813489734,2.80670491,140.56,140.5,50.33609509]
[1641813490237,2.80670491,140.56,140.5,49.1428]
[1641813490638,2.80670491,140.56,140.47,1.778]
[1641813490836,2.80670491,140.56,140.48,47.7776]
[1641813491036,2.0,140.57,140.5,1.19329509]
[1641813491337,2.0,140.57,140.48,47.7776]
[1641813491839,41.96167912,140.57,140.49,4.03125163]
[1641813492037,44.76838403,140.57,140.52,1.19329509]
[1641813492237,41.96167912,140.57,140.52,1.19329509]
[1641813492437,41.96167912,140.57,140.49,4.03125163]
[1641813492839,41.96167912,140.57,140.48,51.7776]
[1641813493239,44.76838403,140.57,140.49,4.0313415]
[1641813494040,41.96167912,140.57,140.53,1.19329509]
[1641813494542,41.96167912,140.57,140.54,1.19329509]
[1641813494743,41.96167912,140.57,140.56,1.19329509]
[1641813494943,2.0,140.57,140.56,1.19329509]
[1641813495841,2.0,140.57,140.55,8.223]
[1641813496042,2.0,140.57,140.52,57.12191683]
[1641813496242,2.0,140.57,140.53,1.19329509]
[1641813496442,0.80636524,140.56,140.53,5.22512131]
[1641813496641,0.80636524,140.56,140.53,4.03182622]
[1641813496842,0.80636524,140.56,140.55,1.19329509]
[1641813498844,0.80636524,140.56,140.53,1.19329509]
[1641813499044,0.80636524,140.56,140.52,49.42559509]
[1641813499245,0.80636524,140.56,140.53,1.19329509]
[1641813499447,0.80636524,140.56,140.52,48.2323]
[1641813499649,0.80636524,140.56,140.54,4.0316339]
[1641813500050,0.80636524,140.56,140.53,4.0316339]
[1641813500249,0.80636524,140.56,140.55,1.19329509]
[1641813500849,2.0,140.57,140.55,9.22492899]
[1641813501046,50.34785457,140.6,140.55,11.00292899]
[1641813501248,50.34785457,140.6,140.56,4.0]
[1641813501747,48.34785457,140.6,140.59,1.19329509]
[1641813501948,8.38617545,140.63,140.59,1.19329509]
[1641813502147,0.80604112,140.6,140.59,5.2235007]
[1641813502549,0.80604112,140.62,140.59,5.2235007]
[1641813502948,0.80604112,140.62,140.57,1.19329509]
[1641813503349,42.76838403,140.65,140.57,1.19329509]
[1641813503350,0.80604112,140.64,140.58,4.03026454]
[1641813503750,0.80604112,140.64,140.58,13.36126454]
[1641813503951,0.80604112,140.64,140.62,1.19329509]
[1641813504352,0.80604112,140.64,140.62,8.83829509]
[1641813505056,0.80604112,140.64,140.62,7.645]
[1641813505255,0.80604112,140.64,140.62,6.83829509]
[1641813505754,39.96167912,140.67,140.62,6.83829509]
[1641813505954,3.99934112,140.66,140.62,6.83829509]
[1641813506154,3.99934112,140.65,140.58,49.0526]
[1641813507055,38.76837912,140.67,140.58,53.0526]
[1641813507355,0.80602965,140.64,140.59,4.03014824]
[1641813507757,0.80602965,140.66,140.59,4.03014824]
[1641813508056,0.80602965,140.67,140.59,4.03014824]
[1641813509557,2.80602965,140.67,140.59,4.03014824]
[1641813509859,2.80602965,140.67,140.59,10.94214824]
[1641813510260,0.80602965,140.66,140.6,4.03014824]
[1641813511460,0.80602965,140.66,140.6,15.13746878]
[1641813511661,0.80602965,140.66,140.6,7.10732054]
[1641813511861,0.80602965,140.66,140.6,8.88332054]
[1641813512061,0.80602965,140.66,140.61,4.03014824]
[1641813515063,15.80422307,140.66,140.61,4.03014824]
[1641813515362,15.80422307,140.66,140.59,4.03014824]
[1641813515562,24.77622307,140.66,140.59,4.03014824]
[1641813515964,0.80602965,140.65,140.59,4.03014824]
[1641813518569,0.80602965,140.66,140.59,4.03014824]
[1641813518971,0.80602965,140.66,140.61,4.0]
[1641813519169,0.80602965,140.66,140.61,5.776]
[1641813519368,0.80602965,140.66,140.62,4.0]
[1641813519568,0.80602965,140.66,140.62,4.03014824]
[1641813519970,0.80602965,140.66,140.61,4.03014824]